[Event "Titled Tuesday Blitz March 29 Early 2022"]
[White "Marcziter, Dmitrii"]
[Black "Fiol, Fabrice"]
[WhiteFideId "13900765"]
[BlackFideId "611670"]
[WhiteElo "2155"]
[BlackElo "2437"]
[Result "1-0"]
[Round "05"]
[TimeControl "180+1"]
[Date "2022.03.30"]
[WhiteClock "0:00:16"]
[BlackClock "0:00:10"]

1. d4 {[%clk 0:03:00]}  Nf6 {[%clk 0:02:59]} 2. c4 {[%clk 0:03:00]}  e6 {[%clk 0:02:59]} 3. Nf3 {[%clk 0:02:59]}  Bb4+ {[%clk 0:02:58]} 4. Nbd2 {[%clk 0:02:58]}  b6 {[%clk 0:02:58]} 5. a3 {[%clk 0:02:58]}  Bxd2+ {[%clk 0:02:58]} 6. Bxd2 {[%clk 0:02:58]}  Bb7 {[%clk 0:02:58]} 7. Bf4 {[%clk 0:02:57]}  d6 {[%clk 0:02:56]} 8. h3 {[%clk 0:02:57]}  Nbd7 {[%clk 0:02:55]} 9. e3 {[%clk 0:02:57]}  Ne4 {[%clk 0:02:53]} 10. Be2 {[%clk 0:02:56]}  O-O {[%clk 0:02:52]} 11. O-O {[%clk 0:02:53]}  f5 {[%clk 0:02:51]} 12. Qc2 {[%clk 0:02:51]}  g5 {[%clk 0:02:45]} 13. Bh2 {[%clk 0:02:50]}  Rf6 {[%clk 0:02:28]} 14. Nd2 {[%clk 0:02:48]}  Nxd2 {[%clk 0:02:12]} 15. Qxd2 {[%clk 0:02:46]}  Qe7 {[%clk 0:02:03]} 16. b4 {[%clk 0:02:41]}  e5 {[%clk 0:01:53]} 17. Rfe1 {[%clk 0:02:37]}  Raf8 {[%clk 0:01:51]} 18. Bf1 {[%clk 0:02:36]}  e4 {[%clk 0:01:45]} 19. c5 {[%clk 0:02:35]}  f4 {[%clk 0:01:41]} 20. exf4 {[%clk 0:02:33]}  gxf4 {[%clk 0:01:41]} 21. cxd6 {[%clk 0:02:20]}  cxd6 {[%clk 0:01:37]} 22. Rac1 {[%clk 0:02:16]}  e3 {[%clk 0:01:24]} 23. Qa2+ {[%clk 0:02:07]}  Kh8 {[%clk 0:01:21]} 24. Rc7 {[%clk 0:02:01]}  Be4 {[%clk 0:01:15]} 25. Bb5 {[%clk 0:01:55]}  Rg6 {[%clk 0:01:01]} 26. f3 {[%clk 0:01:24]}  Bxf3 {[%clk 0:01:00]} 27. Rxd7 {[%clk 0:01:24]}  Qh4 {[%clk 0:00:54]} 28. Re2 {[%clk 0:01:04]}  Bxe2 {[%clk 0:00:46]} 29. Qxe2 {[%clk 0:00:58]}  f3 {[%clk 0:00:46]} 30. Qxe3 {[%clk 0:00:57]}  Rxg2+ {[%clk 0:00:39]} 31. Kh1 {[%clk 0:00:51]}  Re2 {[%clk 0:00:33]} 32. Bxe2 {[%clk 0:00:40]}  Qe1+ {[%clk 0:00:20]} 33. Bg1 {[%clk 0:00:29]}  f2 {[%clk 0:00:20]} 34. Qg3 {[%clk 0:00:19]}  fxg1=Q+ {[%clk 0:00:18]} 35. Qxg1 {[%clk 0:00:19]}  Qxg1+ {[%clk 0:00:09]} 36. Kxg1 {[%clk 0:00:19]}  Re8 {[%clk 0:00:10]} 37. Bd3 {[%clk 0:00:19]}  Re3 {[%clk 0:00:10]} 38. Bxh7 {[%clk 0:00:19]}  Rxh3 {[%clk 0:00:08]} 39. Bf5 {[%clk 0:00:18]}  Rxa3 {[%clk 0:00:08]} 40. Rxd6 {[%clk 0:00:16]}  a5 {[%clk 0:00:09]} 41. b5 {[%clk 0:00:16]}  Rf3 {[%clk 0:00:08]} 42. Bd7 {[%clk 0:00:15]}  a4 {[%clk 0:00:07]} 43. Rxb6 {[%clk 0:00:15]}  a3 {[%clk 0:00:08]} 44. Ra6 {[%clk 0:00:15]}  Rb3 {[%clk 0:00:08]} 45. b6 {[%clk 0:00:15]}  Kg7 {[%clk 0:00:07]} 46. Be6 {[%clk 0:00:16]}  Kf6 {[%clk 0:00:07]} 47. d5 {[%clk 0:00:17]}  Rb1+ {[%clk 0:00:07]} 48. Kf2 {[%clk 0:00:16]}  Rb2+ {[%clk 0:00:08]} 49. Ke3 {[%clk 0:00:17]}  a2 {[%clk 0:00:09]} 50. Kd3 {[%clk 0:00:16]}  Ke5 {[%clk 0:00:09]} 51. Kc3 {[%clk 0:00:16]}  Rb1 {[%clk 0:00:09]} 52. Rxa2 {[%clk 0:00:15]}  Rc1+ {[%clk 0:00:10]} 53. Rc2 {[%clk 0:00:15]}  Ra1 {[%clk 0:00:10]} 54. Rb2 {[%clk 0:00:16]}  Ra5 {[%clk 0:00:11]} 55. b7 {[%clk 0:00:16]}  Rc5+ {[%clk 0:00:11]} 56. Kd3 {[%clk 0:00:15]}  Ra5 {[%clk 0:00:10]} 57. b8=Q+ {[%clk 0:00:16]}  Kf6 {[%clk 0:00:09]} 58. Qf8+ {[%clk 0:00:16]}  Ke5 {[%clk 0:00:10]} 59. Re2# {[%clk 0:00:16]} 1-0


[Site "https://www.chess.com"]

[Event "Titled Tuesday Blitz March 29 Early 2022"]
[White "Martin Carmona, Gaston Manuel"]
[Black "Korchmar, Vasiliy"]
[WhiteFideId "22284567"]
[BlackFideId "24131750"]
[WhiteElo "2161"]
[BlackElo "2370"]
[Result "1-0"]
[Round "05"]
[TimeControl "180+1"]
[Date "2022.03.30"]
[WhiteClock "0:01:14"]
[BlackClock "0:01:20"]

1. c4 {[%clk 0:03:00]}  c6 {[%clk 0:02:59]} 2. Nf3 {[%clk 0:02:59]}  d5 {[%clk 0:02:59]} 3. e3 {[%clk 0:02:59]}  Nf6 {[%clk 0:02:59]} 4. b3 {[%clk 0:02:59]}  e6 {[%clk 0:02:59]} 5. Bb2 {[%clk 0:03:00]}  Bd6 {[%clk 0:03:00]} 6. Qc2 {[%clk 0:02:59]}  O-O {[%clk 0:03:00]} 7. Nc3 {[%clk 0:03:00]}  e5 {[%clk 0:03:00]} 8. cxd5 {[%clk 0:02:57]}  cxd5 {[%clk 0:03:01]} 9. Nb5 {[%clk 0:02:54]}  Nc6 {[%clk 0:03:01]} 10. Nxd6 {[%clk 0:02:52]}  Qxd6 {[%clk 0:03:02]} 11. Bb5 {[%clk 0:02:47]}  Bg4 {[%clk 0:02:23]} 12. Bxc6 {[%clk 0:02:42]}  Bxf3 {[%clk 0:02:23]} 13. gxf3 {[%clk 0:02:43]}  bxc6 {[%clk 0:02:23]} 14. O-O-O {[%clk 0:02:36]}  a5 {[%clk 0:02:17]} 15. Qf5 {[%clk 0:02:35]}  Rfe8 {[%clk 0:01:57]} 16. f4 {[%clk 0:02:34]}  Ne4 {[%clk 0:01:57]} 17. fxe5 {[%clk 0:02:16]}  Qc5+ {[%clk 0:01:57]} 18. Kb1 {[%clk 0:02:16]}  a4 {[%clk 0:01:58]} 19. Rhg1 {[%clk 0:02:03]}  axb3 {[%clk 0:01:56]} 20. Rxg7+ {[%clk 0:01:18]}  Kxg7 {[%clk 0:01:55]} 21. e6+ {[%clk 0:01:19]}  f6 {[%clk 0:01:51]} 22. Bxf6+ {[%clk 0:01:18]}  Kh6 {[%clk 0:01:26]} 23. Bg7+ {[%clk 0:01:13]}  Kxg7 {[%clk 0:01:22]} 24. Rg1+ {[%clk 0:01:14]}  Kh6 {[%clk 0:01:20]} 25. Qh3# {[%clk 0:01:14]} 1-0


[Site "https://www.chess.com"]

[Event "Titled Tuesday Blitz March 29 Early 2022"]
[White "Meissner, Felix"]
[Black "Balint, Vilmos"]
[WhiteFideId "24671827"]
[BlackFideId "718050"]
[WhiteElo "2350"]
[BlackElo "2059"]
[Result "0-1"]
[Round "05"]
[TimeControl "180+1"]
[Date "2022.03.30"]
[WhiteClock "0:01:30"]
[BlackClock "0:01:31"]

1. e4 {[%clk 0:03:00]}  e6 {[%clk 0:02:57]} 2. d4 {[%clk 0:03:00]}  d5 {[%clk 0:02:57]} 3. Nd2 {[%clk 0:03:00]}  c5 {[%clk 0:02:55]} 4. exd5 {[%clk 0:02:59]}  exd5 {[%clk 0:02:55]} 5. Ngf3 {[%clk 0:03:00]}  Nf6 {[%clk 0:02:55]} 6. Bb5+ {[%clk 0:03:00]}  Bd7 {[%clk 0:02:55]} 7. Bxd7+ {[%clk 0:03:00]}  Qxd7 {[%clk 0:02:55]} 8. O-O {[%clk 0:03:00]}  Be7 {[%clk 0:02:54]} 9. dxc5 {[%clk 0:03:00]}  O-O {[%clk 0:02:52]} 10. Nb3 {[%clk 0:03:00]}  a5 {[%clk 0:02:51]} 11. a4 {[%clk 0:03:00]}  Na6 {[%clk 0:02:51]} 12. Be3 {[%clk 0:03:00]}  Rac8 {[%clk 0:02:50]} 13. Bd4 {[%clk 0:03:01]}  Ne4 {[%clk 0:02:41]} 14. Nxa5 {[%clk 0:03:00]}  Naxc5 {[%clk 0:02:40]} 15. c3 {[%clk 0:02:58]}  b6 {[%clk 0:02:35]} 16. Nb3 {[%clk 0:02:58]}  Nxa4 {[%clk 0:02:35]} 17. Qc2 {[%clk 0:02:55]}  Nac5 {[%clk 0:02:33]} 18. Nbd2 {[%clk 0:02:53]}  Bf6 {[%clk 0:02:28]} 19. Bxf6 {[%clk 0:02:51]}  Nxf6 {[%clk 0:02:27]} 20. Nd4 {[%clk 0:02:51]}  Rfe8 {[%clk 0:02:26]} 21. N2f3 {[%clk 0:02:50]}  Nfe4 {[%clk 0:02:25]} 22. Rfd1 {[%clk 0:02:44]}  h6 {[%clk 0:02:22]} 23. h3 {[%clk 0:02:32]}  Ra8 {[%clk 0:02:17]} 24. Rxa8 {[%clk 0:02:28]}  Rxa8 {[%clk 0:02:17]} 25. Ne5 {[%clk 0:02:24]}  Qe8 {[%clk 0:02:12]} 26. Nd3 {[%clk 0:02:21]}  Qa4 {[%clk 0:02:05]} 27. Qxa4 {[%clk 0:02:16]}  Rxa4 {[%clk 0:02:05]} 28. Nf4 {[%clk 0:02:15]}  Ra2 {[%clk 0:02:02]} 29. Nxd5 {[%clk 0:02:08]}  Rxb2 {[%clk 0:02:02]} 30. f3 {[%clk 0:02:07]}  Ng3 {[%clk 0:01:47]} 31. Re1 {[%clk 0:02:05]}  Nd3 {[%clk 0:01:45]} 32. Re8+ {[%clk 0:02:04]}  Kh7 {[%clk 0:01:45]} 33. Re7 {[%clk 0:02:02]}  Rb1+ {[%clk 0:01:40]} 34. Kh2 {[%clk 0:02:01]}  Nf1+ {[%clk 0:01:40]} 35. Kg1 {[%clk 0:02:01]}  Ne3+ {[%clk 0:01:40]} 36. Kh2 {[%clk 0:02:01]}  Nxd5 {[%clk 0:01:41]} 37. Rxf7 {[%clk 0:02:01]}  Nxc3 {[%clk 0:01:39]} 38. Ne6 {[%clk 0:02:01]}  b5 {[%clk 0:01:38]} 39. Rxg7+ {[%clk 0:02:00]}  Kh8 {[%clk 0:01:38]} 40. Rb7 {[%clk 0:01:53]}  b4 {[%clk 0:01:39]} 41. Nf8 {[%clk 0:01:49]}  Nc5 {[%clk 0:01:36]} 42. Re7 {[%clk 0:01:46]}  b3 {[%clk 0:01:36]} 43. Nh7 {[%clk 0:01:31]}  Nd5 {[%clk 0:01:31]} 44. Ra7 {[%clk 0:01:30]} 0-1


[Site "https://www.chess.com"]

[Event "Titled Tuesday Blitz March 29 Early 2022"]
[White "Mikhalsky, Vladimir"]
[Black "Mikhailovsky, Vladimir"]
[WhiteFideId "14144352"]
[BlackFideId "34105414"]
[WhiteElo "2498"]
[BlackElo "2782"]
[Result "0-1"]
[Round "05"]
[TimeControl "180+1"]
[Date "2022.03.30"]
[WhiteClock "0:00:07"]
[BlackClock "0:00:07"]

1. c4 {[%clk 0:02:59]}  e6 {[%clk 0:02:59]} 2. g3 {[%clk 0:02:52]}  d5 {[%clk 0:02:59]} 3. Bg2 {[%clk 0:02:51]}  Nf6 {[%clk 0:03:00]} 4. Nf3 {[%clk 0:02:51]}  d4 {[%clk 0:02:59]} 5. O-O {[%clk 0:02:51]}  c5 {[%clk 0:03:00]} 6. e3 {[%clk 0:02:51]}  Nc6 {[%clk 0:03:00]} 7. exd4 {[%clk 0:02:51]}  cxd4 {[%clk 0:03:01]} 8. Re1 {[%clk 0:02:51]}  Bd6 {[%clk 0:02:55]} 9. d3 {[%clk 0:02:51]}  h6 {[%clk 0:02:55]} 10. Na3 {[%clk 0:02:48]}  O-O {[%clk 0:02:54]} 11. Nc2 {[%clk 0:02:44]}  e5 {[%clk 0:02:54]} 12. b4 {[%clk 0:02:42]}  Nxb4 {[%clk 0:02:47]} 13. Nxb4 {[%clk 0:02:35]}  Bxb4 {[%clk 0:02:46]} 14. Rxe5 {[%clk 0:02:35]}  Bd6 {[%clk 0:02:36]} 15. Re2 {[%clk 0:02:22]}  Rb8 {[%clk 0:02:19]} 16. Rb1 {[%clk 0:02:17]}  Bg4 {[%clk 0:02:02]} 17. h3 {[%clk 0:02:14]}  Bxf3 {[%clk 0:02:02]} 18. Bxf3 {[%clk 0:02:14]}  b6 {[%clk 0:02:03]} 19. Rb5 {[%clk 0:01:57]}  Bc5 {[%clk 0:02:02]} 20. a4 {[%clk 0:01:49]}  Ne8 {[%clk 0:01:41]} 21. Bf4 {[%clk 0:01:30]}  Nc7 {[%clk 0:01:41]} 22. Bxc7 {[%clk 0:01:25]}  Qxc7 {[%clk 0:01:41]} 23. Qe1 {[%clk 0:01:23]}  Qd7 {[%clk 0:01:36]} 24. Kg2 {[%clk 0:01:21]}  a6 {[%clk 0:01:35]} 25. Rb1 {[%clk 0:01:12]}  Qxa4 {[%clk 0:01:29]} 26. Ra1 {[%clk 0:01:12]}  Qb3 {[%clk 0:01:18]} 27. Be4 {[%clk 0:00:53]}  a5 {[%clk 0:01:17]} 28. Qb1 {[%clk 0:00:42]}  Qxb1 {[%clk 0:01:17]} 29. Rxb1 {[%clk 0:00:42]}  Rfe8 {[%clk 0:01:15]} 30. Ra2 {[%clk 0:00:41]}  Kf8 {[%clk 0:01:14]} 31. Kf3 {[%clk 0:00:41]}  Re5 {[%clk 0:01:13]} 32. Bd5 {[%clk 0:00:39]}  Rbe8 {[%clk 0:01:12]} 33. Bc6 {[%clk 0:00:39]}  R8e6 {[%clk 0:01:12]} 34. Bd5 {[%clk 0:00:39]}  Rf6+ {[%clk 0:01:10]} 35. Kg2 {[%clk 0:00:39]}  g5 {[%clk 0:01:11]} 36. g4 {[%clk 0:00:39]}  Rf4 {[%clk 0:01:09]} 37. Be4 {[%clk 0:00:38]}  Rfxe4 {[%clk 0:00:53]} 38. dxe4 {[%clk 0:00:38]}  Rxe4 {[%clk 0:00:53]} 39. Rb3 {[%clk 0:00:39]}  Ke7 {[%clk 0:00:50]} 40. Kf3 {[%clk 0:00:38]}  Rf4+ {[%clk 0:00:49]} 41. Kg3 {[%clk 0:00:37]}  d3 {[%clk 0:00:30]} 42. Rxd3 {[%clk 0:00:34]}  Rxc4 {[%clk 0:00:31]} 43. Re2+ {[%clk 0:00:33]}  Kf6 {[%clk 0:00:28]} 44. Rf3+ {[%clk 0:00:32]}  Kg6 {[%clk 0:00:29]} 45. Kg2 {[%clk 0:00:30]}  a4 {[%clk 0:00:27]} 46. Re8 {[%clk 0:00:29]}  a3 {[%clk 0:00:25]} 47. Rg8+ {[%clk 0:00:29]}  Kh7 {[%clk 0:00:25]} 48. Ra8 {[%clk 0:00:28]}  Kg7 {[%clk 0:00:26]} 49. Ra7 {[%clk 0:00:28]}  Rf4 {[%clk 0:00:25]} 50. Rfxa3 {[%clk 0:00:21]}  Bxa3 {[%clk 0:00:11]} 51. Rxa3 {[%clk 0:00:21]}  b5 {[%clk 0:00:09]} 52. Ra6 {[%clk 0:00:19]}  Rf6 {[%clk 0:00:08]} 53. Ra5 {[%clk 0:00:16]}  Rb6 {[%clk 0:00:08]} 54. Ra3 {[%clk 0:00:16]}  Kf6 {[%clk 0:00:07]} 55. Kf3 {[%clk 0:00:16]}  Ke5 {[%clk 0:00:07]} 56. Ke3 {[%clk 0:00:16]}  Kd5 {[%clk 0:00:07]} 57. Kd3 {[%clk 0:00:17]}  Rf6 {[%clk 0:00:06]} 58. Ke3 {[%clk 0:00:14]}  Kc4 {[%clk 0:00:06]} 59. Ra8 {[%clk 0:00:13]}  b4 {[%clk 0:00:06]} 60. Rc8+ {[%clk 0:00:13]}  Kb5 {[%clk 0:00:06]} 61. Rb8+ {[%clk 0:00:12]}  Rb6 {[%clk 0:00:07]} 62. Rd8 {[%clk 0:00:11]}  b3 {[%clk 0:00:07]} 63. Kd2 {[%clk 0:00:11]}  Kc4 {[%clk 0:00:07]} 64. Kc1 {[%clk 0:00:11]}  Kc3 {[%clk 0:00:06]} 65. Rc8+ {[%clk 0:00:10]}  Kd3 {[%clk 0:00:06]} 66. Re8 {[%clk 0:00:10]}  Kc4 {[%clk 0:00:02]} 67. Kb2 {[%clk 0:00:10]}  Kb4 {[%clk 0:00:02]} 68. Rf8 {[%clk 0:00:09]}  Rf6 {[%clk 0:00:02]} 69. Rb8+ {[%clk 0:00:08]}  Kc4 {[%clk 0:00:03]} 70. Rc8+ {[%clk 0:00:08]}  Kd4 {[%clk 0:00:03]} 71. Rd8+ {[%clk 0:00:09]}  Ke4 {[%clk 0:00:03]} 72. Re8+ {[%clk 0:00:09]}  Kf3 {[%clk 0:00:03]} 73. Kxb3 {[%clk 0:00:09]}  Kxf2 {[%clk 0:00:04]} 74. Rd8 {[%clk 0:00:08]}  Kg3 {[%clk 0:00:04]} 75. Kc4 {[%clk 0:00:08]}  Kxh3 {[%clk 0:00:04]} 76. Kd4 {[%clk 0:00:08]}  Kxg4 {[%clk 0:00:04]} 77. Ke5 {[%clk 0:00:08]}  Rf4 {[%clk 0:00:04]} 78. Kd5 {[%clk 0:00:08]}  h5 {[%clk 0:00:04]} 79. Rh8 {[%clk 0:00:09]}  h4 {[%clk 0:00:05]} 80. Ke5 {[%clk 0:00:09]}  h3 {[%clk 0:00:06]} 81. Kd5 {[%clk 0:00:09]}  f6 {[%clk 0:00:06]} 82. Ke6 {[%clk 0:00:07]}  Kg3 {[%clk 0:00:07]} 83. Kf7 {[%clk 0:00:07]}  Kg2 {[%clk 0:00:06]} 84. Kg6 {[%clk 0:00:08]}  h2 {[%clk 0:00:07]} 85. Rh4 {[%clk 0:00:07]}  Rxh4 {[%clk 0:00:07]} 0-1


[Site "https://www.chess.com"]

[Event "Titled Tuesday Blitz March 29 Early 2022"]
[White "Odegov, Artem"]
[Black "Kobalia, Mikhail"]
[WhiteFideId "34183644"]
[BlackFideId "4119150"]
[WhiteElo "2498"]
[BlackElo "2807"]
[Result "1-0"]
[Round "05"]
[TimeControl "180+1"]
[Date "2022.03.30"]
[WhiteClock "0:00:18"]
[BlackClock "0:00:37"]

1. d4 {[%clk 0:03:00]}  Nf6 {[%clk 0:02:58]} 2. c4 {[%clk 0:03:01]}  g6 {[%clk 0:02:59]} 3. Nc3 {[%clk 0:03:01]}  Bg7 {[%clk 0:02:59]} 4. e4 {[%clk 0:03:01]}  O-O {[%clk 0:02:59]} 5. h3 {[%clk 0:03:02]}  d6 {[%clk 0:02:58]} 6. Be3 {[%clk 0:03:03]}  e5 {[%clk 0:02:58]} 7. d5 {[%clk 0:03:03]}  Na6 {[%clk 0:02:54]} 8. Bd3 {[%clk 0:03:01]}  Nc5 {[%clk 0:02:53]} 9. Bc2 {[%clk 0:03:01]}  a5 {[%clk 0:02:53]} 10. g4 {[%clk 0:03:01]}  Ne8 {[%clk 0:02:49]} 11. Nge2 {[%clk 0:03:00]}  Bf6 {[%clk 0:02:48]} 12. Qd2 {[%clk 0:02:58]}  Bh4 {[%clk 0:02:47]} 13. O-O-O {[%clk 0:02:55]}  Ng7 {[%clk 0:02:47]} 14. Rdg1 {[%clk 0:02:51]}  Bd7 {[%clk 0:02:42]} 15. Rg2 {[%clk 0:02:48]}  f6 {[%clk 0:02:41]} 16. f4 {[%clk 0:02:17]}  exf4 {[%clk 0:02:40]} 17. Nxf4 {[%clk 0:02:18]}  Qe7 {[%clk 0:02:33]} 18. Bf2 {[%clk 0:01:43]}  Bxf2 {[%clk 0:02:31]} 19. Qxf2 {[%clk 0:01:43]}  Qe5 {[%clk 0:02:29]} 20. h4 {[%clk 0:01:14]}  Rab8 {[%clk 0:02:29]} 21. h5 {[%clk 0:00:57]}  Qg5 {[%clk 0:02:15]} 22. hxg6 {[%clk 0:00:47]}  hxg6 {[%clk 0:02:15]} 23. Kb1 {[%clk 0:00:43]}  b5 {[%clk 0:02:14]} 24. cxb5 {[%clk 0:00:41]}  Bxb5 {[%clk 0:02:14]} 25. Rgh2 {[%clk 0:00:40]}  Kf7 {[%clk 0:02:13]} 26. e5 {[%clk 0:00:34]}  dxe5 {[%clk 0:00:44]} 27. Bxg6+ {[%clk 0:00:24]}  Ke7 {[%clk 0:00:37]} 28. Qxc5+ {[%clk 0:00:24]}  Kd7 {[%clk 0:00:37]} 29. Rh7 {[%clk 0:00:18]} 1-0


[Site "https://www.chess.com"]

[Event "Titled Tuesday Blitz March 29 Early 2022"]
[White "Omelja, Artem"]
[Black "Bintang, Rasyid A. Hidayat"]
[WhiteFideId "14119846"]
[BlackFideId "7105355"]
[WhiteElo "2382"]
[BlackElo "2376"]
[Result "1/2-1/2"]
[Round "05"]
[TimeControl "180+1"]
[Date "2022.03.30"]
[WhiteClock "0:00:06"]
[BlackClock "0:00:21"]

1. d4 {[%clk 0:03:00]}  d5 {[%clk 0:02:59]} 2. c4 {[%clk 0:02:52]}  Nc6 {[%clk 0:02:58]} 3. cxd5 {[%clk 0:02:32]}  Qxd5 {[%clk 0:02:57]} 4. Nf3 {[%clk 0:02:29]}  e5 {[%clk 0:02:56]} 5. Nc3 {[%clk 0:02:23]}  Bb4 {[%clk 0:02:55]} 6. Bd2 {[%clk 0:02:21]}  Bxc3 {[%clk 0:02:55]} 7. Bxc3 {[%clk 0:02:22]}  e4 {[%clk 0:02:54]} 8. Nd2 {[%clk 0:02:17]}  e3 {[%clk 0:02:53]} 9. fxe3 {[%clk 0:02:18]}  Nf6 {[%clk 0:02:51]} 10. Qc2 {[%clk 0:02:01]}  Bf5 {[%clk 0:02:49]} 11. Qb3 {[%clk 0:02:00]}  Qxb3 {[%clk 0:02:33]} 12. axb3 {[%clk 0:01:55]}  O-O-O {[%clk 0:02:31]} 13. h3 {[%clk 0:01:48]}  h5 {[%clk 0:02:29]} 14. g3 {[%clk 0:01:46]}  Ne4 {[%clk 0:02:21]} 15. Nxe4 {[%clk 0:01:43]}  Bxe4 {[%clk 0:02:22]} 16. Rg1 {[%clk 0:01:43]}  Rhe8 {[%clk 0:02:21]} 17. Kd2 {[%clk 0:01:38]}  Bd5 {[%clk 0:02:18]} 18. Bg2 {[%clk 0:01:34]}  Bxg2 {[%clk 0:02:11]} 19. Rxg2 {[%clk 0:01:33]}  a6 {[%clk 0:01:58]} 20. Rf2 {[%clk 0:01:20]}  Re7 {[%clk 0:01:52]} 21. Kd3 {[%clk 0:01:04]}  Ne5+ {[%clk 0:01:39]} 22. Kd2 {[%clk 0:01:01]}  Nc6 {[%clk 0:01:40]} 23. Raf1 {[%clk 0:00:51]}  f6 {[%clk 0:01:37]} 24. Rf5 {[%clk 0:00:42]}  Rde8 {[%clk 0:01:35]} 25. R1f3 {[%clk 0:00:41]}  h4 {[%clk 0:01:30]} 26. gxh4 {[%clk 0:00:39]}  Re4 {[%clk 0:01:30]} 27. R5f4 {[%clk 0:00:37]}  R4e7 {[%clk 0:01:25]} 28. Rg4 {[%clk 0:00:35]}  Rd8 {[%clk 0:01:20]} 29. Rfg3 {[%clk 0:00:34]}  Rdd7 {[%clk 0:01:14]} 30. h5 {[%clk 0:00:30]}  b5 {[%clk 0:01:13]} 31. Ke1 {[%clk 0:00:23]}  Kb7 {[%clk 0:00:58]} 32. Rg6 {[%clk 0:00:22]}  Rd5 {[%clk 0:00:48]} 33. h6 {[%clk 0:00:21]}  gxh6 {[%clk 0:00:48]} 34. Rxh6 {[%clk 0:00:22]}  f5 {[%clk 0:00:35]} 35. Rf6 {[%clk 0:00:22]}  Re4 {[%clk 0:00:34]} 36. Kf2 {[%clk 0:00:20]}  Ne7 {[%clk 0:00:28]} 37. Bb4 {[%clk 0:00:19]}  Nc6 {[%clk 0:00:28]} 38. Bc5 {[%clk 0:00:18]}  Na5 {[%clk 0:00:26]} 39. Rg7 {[%clk 0:00:13]}  Nxb3 {[%clk 0:00:23]} 40. Rff7 {[%clk 0:00:06]}  Nxc5 {[%clk 0:00:23]} 41. Rxc7+ {[%clk 0:00:06]}  Kb6 {[%clk 0:00:22]} 42. dxc5+ {[%clk 0:00:02]}  Rxc5 {[%clk 0:00:20]} 43. Rxc5 {[%clk 0:00:02]}  Kxc5 {[%clk 0:00:21]} 44. Ra7 {[%clk 0:00:02]}  Kb6 {[%clk 0:00:21]} 45. Rf7 {[%clk 0:00:02]}  Rh4 {[%clk 0:00:20]} 46. Rf6+ {[%clk 0:00:02]}  Ka5 {[%clk 0:00:21]} 47. Kg3 {[%clk 0:00:03]}  Re4 {[%clk 0:00:20]} 48. Kf3 {[%clk 0:00:03]}  Rh4 {[%clk 0:00:20]} 49. Kg3 {[%clk 0:00:02]}  Re4 {[%clk 0:00:20]} 50. Rxf5 {[%clk 0:00:02]}  Rxe3+ {[%clk 0:00:21]} 51. Rf3 {[%clk 0:00:02]}  Rxe2 {[%clk 0:00:21]} 52. h4 {[%clk 0:00:02]}  Rxb2 {[%clk 0:00:19]} 53. Ra3+ {[%clk 0:00:02]}  Kb4 {[%clk 0:00:19]} 54. Rxa6 {[%clk 0:00:02]}  Rb1 {[%clk 0:00:19]} 55. Kg4 {[%clk 0:00:02]}  Rg1+ {[%clk 0:00:19]} 56. Kf5 {[%clk 0:00:02]}  Rh1 {[%clk 0:00:18]} 57. Kg5 {[%clk 0:00:03]}  Rg1+ {[%clk 0:00:18]} 58. Kh6 {[%clk 0:00:03]}  Rh1 {[%clk 0:00:19]} 59. h5 {[%clk 0:00:04]}  Kc3 {[%clk 0:00:19]} 60. Rc6+ {[%clk 0:00:04]}  Kb3 {[%clk 0:00:19]} 61. Rb6 {[%clk 0:00:04]}  Kc4 {[%clk 0:00:19]} 62. Kg6 {[%clk 0:00:05]}  b4 {[%clk 0:00:19]} 63. h6 {[%clk 0:00:05]}  b3 {[%clk 0:00:19]} 64. Kg7 {[%clk 0:00:05]}  Kc3 {[%clk 0:00:20]} 65. h7 {[%clk 0:00:06]}  b2 {[%clk 0:00:20]} 66. Kg8 {[%clk 0:00:04]}  Kc2 {[%clk 0:00:20]} 67. Rc6+ {[%clk 0:00:04]}  Kb3 {[%clk 0:00:20]} 68. Rb6+ {[%clk 0:00:04]}  Kc2 {[%clk 0:00:21]} 69. h8=Q {[%clk 0:00:04]}  Rxh8+ {[%clk 0:00:20]} 70. Kxh8 {[%clk 0:00:05]}  b1=Q {[%clk 0:00:21]} 71. Rxb1 {[%clk 0:00:06]}  Kxb1 {[%clk 0:00:21]} 1/2-1/2


[Site "https://www.chess.com"]

[Event "Titled Tuesday Blitz March 29 Early 2022"]
[White "Oro, Luis"]
[Black "Nan, M K Khine Hlyan"]
[WhiteFideId "104094"]
[BlackFideId "13002899"]
[WhiteElo "2350"]
[BlackElo "1943"]
[Result "1-0"]
[Round "05"]
[TimeControl "180+1"]
[Date "2022.03.30"]
[WhiteClock "0:00:54"]
[BlackClock "0:00:08"]

1. e4 {[%clk 0:02:54]}  e5 {[%clk 0:02:58]} 2. Nf3 {[%clk 0:02:53]}  Nc6 {[%clk 0:02:55]} 3. Bc4 {[%clk 0:02:53]}  Bc5 {[%clk 0:02:53]} 4. c3 {[%clk 0:02:53]}  Nf6 {[%clk 0:02:51]} 5. d3 {[%clk 0:02:53]}  h6 {[%clk 0:02:48]} 6. a4 {[%clk 0:02:52]}  a5 {[%clk 0:02:44]} 7. O-O {[%clk 0:02:52]}  O-O {[%clk 0:02:43]} 8. h3 {[%clk 0:02:51]}  Bb6 {[%clk 0:02:40]} 9. Be3 {[%clk 0:02:43]}  d5 {[%clk 0:02:33]} 10. exd5 {[%clk 0:02:39]}  Nxd5 {[%clk 0:02:31]} 11. Bxd5 {[%clk 0:02:22]}  Qxd5 {[%clk 0:02:23]} 12. Bxb6 {[%clk 0:02:22]}  cxb6 {[%clk 0:02:21]} 13. Qe2 {[%clk 0:02:21]}  Bf5 {[%clk 0:02:15]} 14. Rd1 {[%clk 0:02:12]}  Rad8 {[%clk 0:02:11]} 15. d4 {[%clk 0:02:10]}  e4 {[%clk 0:02:04]} 16. Ne1 {[%clk 0:02:07]}  Rfe8 {[%clk 0:01:50]} 17. Nc2 {[%clk 0:02:05]}  Qe6 {[%clk 0:01:39]} 18. Ne3 {[%clk 0:02:03]}  Qg6 {[%clk 0:01:36]} 19. Kh2 {[%clk 0:01:47]}  Qd6+ {[%clk 0:01:31]} 20. g3 {[%clk 0:01:44]}  Bg6 {[%clk 0:01:27]} 21. Nd2 {[%clk 0:01:44]}  f5 {[%clk 0:01:25]} 22. Ndc4 {[%clk 0:01:39]}  Qc7 {[%clk 0:01:22]} 23. Ng2 {[%clk 0:01:34]}  Bf7 {[%clk 0:01:12]} 24. Nce3 {[%clk 0:01:34]}  Ne7 {[%clk 0:01:10]} 25. h4 {[%clk 0:01:25]}  Bg6 {[%clk 0:00:50]} 26. Qb5 {[%clk 0:01:22]}  Qc6 {[%clk 0:00:41]} 27. Qxc6 {[%clk 0:01:09]}  bxc6 {[%clk 0:00:40]} 28. Nc4 {[%clk 0:01:07]}  Nd5 {[%clk 0:00:38]} 29. Ne5 {[%clk 0:01:03]}  Bh7 {[%clk 0:00:32]} 30. Nxc6 {[%clk 0:01:02]}  Nf6 {[%clk 0:00:23]} 31. Nxd8 {[%clk 0:01:02]}  Rxd8 {[%clk 0:00:22]} 32. Ne3 {[%clk 0:01:01]}  g5 {[%clk 0:00:19]} 33. hxg5 {[%clk 0:01:02]}  hxg5 {[%clk 0:00:19]} 34. Nc4 {[%clk 0:01:02]}  Ng4+ {[%clk 0:00:18]} 35. Kg1 {[%clk 0:01:03]}  f4 {[%clk 0:00:17]} 36. Nxb6 {[%clk 0:01:01]}  fxg3 {[%clk 0:00:15]} 37. fxg3 {[%clk 0:01:01]}  e3 {[%clk 0:00:14]} 38. Re1 {[%clk 0:01:01]}  Bd3 {[%clk 0:00:11]} 39. Rad1 {[%clk 0:00:56]}  Bc4 {[%clk 0:00:11]} 40. Nxc4 {[%clk 0:00:55]}  Rf8 {[%clk 0:00:09]} 41. Nxe3 {[%clk 0:00:55]}  Nf6 {[%clk 0:00:08]} 42. Rf1 {[%clk 0:00:54]} 1-0


[Site "https://www.chess.com"]